[Event "*** Qualifier 3: Titled Tuesday 3|2 Blitz"]
[Site "Chess.com"]
[Date "2017.04.18"]
[Round "7"]
[White "abubakrtagelsir"]
[Black "GMSAGOR"]
[Result "1-0"]
[WhiteElo "2170"]
[BlackElo "2079"]
[TimeControl "180+2"]
[EndTime "14:38:08 PDT"]
[Termination "abubakrtagelsir won by checkmate"]

1. e4 {[%clk 0:02:59.2]} 1... e5 {[%clk 0:03:00.3]} 2. Nf3 {[%clk 0:02:59.6]}
2... Nf6 {[%clk 0:03:01.9]} 3. Nc3 {[%clk 0:02:59.4]} 3... Nc6 {[%clk 0:03:01]}
4. d4 {[%clk 0:02:46.2]} 4... exd4 {[%clk 0:03:01.4]} 5. Nxd4 {[%clk 0:02:45.7]}
5... Bb4 {[%clk 0:03:02.9]} 6. Nxc6 {[%clk 0:02:44.2]} 6... bxc6 {[%clk
0:03:03.1]} 7. Bd3 {[%clk 0:02:43.9]} 7... d5 {[%clk 0:03:03.5]} 8. exd5 {[%clk
0:02:42.8]} 8... cxd5 {[%clk 0:02:49.8]} 9. O-O {[%clk 0:02:41.5]} 9... O-O
{[%clk 0:02:49.7]} 10. Bg5 {[%clk 0:02:38.1]} 10... c6 {[%clk 0:02:49.7]} 11.
Qf3 {[%clk 0:02:35]} 11... Bd6 {[%clk 0:02:40.7]} 12. Bxf6 {[%clk 0:02:33.8]}
12... Qxf6 {[%clk 0:02:40.5]} 13. Qxf6 {[%clk 0:02:33.6]} 13... gxf6 {[%clk
0:02:42.4]} 14. g3 {[%clk 0:02:34.1]} 14... Rb8 {[%clk 0:02:41.3]} 15. Rab1
{[%clk 0:02:33.2]} 15... Rd8 {[%clk 0:02:39.7]} 16. Ne2 {[%clk 0:02:23.2]} 16...
c5 {[%clk 0:02:31.6]} 17. c3 {[%clk 0:02:18.5]} 17... Be6 {[%clk 0:02:25]} 18.
Rfd1 {[%clk 0:02:04.9]} 18... Rb6 {[%clk 0:02:24.8]} 19. Kg2 {[%clk 0:02:04.4]}
19... Rdb8 {[%clk 0:02:24.7]} 20. b3 {[%clk 0:02:04.7]} 20... Kg7 {[%clk
0:02:17.1]} 21. Bc2 {[%clk 0:01:58]} 21... Ra6 {[%clk 0:02:16.2]} 22. a4 {[%clk
0:01:53.6]} 22... f5 {[%clk 0:02:11.9]} 23. f4 {[%clk 0:01:52.1]} 23... Kf6
{[%clk 0:02:12.1]} 24. Ng1 {[%clk 0:01:50]} 24... Rab6 {[%clk 0:02:09.6]} 25.
Nf3 {[%clk 0:01:49.3]} 25... a5 {[%clk 0:02:04.8]} 26. Re1 {[%clk 0:01:09.7]}
26... h6 {[%clk 0:01:59.7]} 27. Ne5 {[%clk 0:01:04.7]} 27... Bxe5 {[%clk
0:01:53.1]} 28. fxe5+ {[%clk 0:00:59.8]} 28... Ke7 {[%clk 0:01:53.6]} 29. Kf2
{[%clk 0:00:59]} 29... c4 {[%clk 0:01:46.1]} 30. bxc4 {[%clk 0:00:58.6]} 30...
Rb2 {[%clk 0:01:41.7]} 31. Ke3 {[%clk 0:00:55.8]} 31... dxc4 {[%clk 0:01:40]}
32. Rxb2 {[%clk 0:00:51.8]} 32... Rxb2 {[%clk 0:01:40]} 33. Re2 {[%clk
0:00:52.2]} 33... Kd7 {[%clk 0:01:30.5]} 34. Kd4 {[%clk 0:00:50.6]} 34... Kc7
{[%clk 0:01:28.4]} 35. Bd1 {[%clk 0:00:50.4]} 35... Rb1 {[%clk 0:01:25.6]} 36.
Rd2 {[%clk 0:00:50.3]} 36... Rc1 {[%clk 0:01:23.7]} 37. Be2 {[%clk 0:00:50]}
37... Ra1 {[%clk 0:01:20]} 38. Bd1 {[%clk 0:00:50.7]} 38... Ra3 {[%clk
0:01:14.9]} 39. Rb2 {[%clk 0:00:47.3]} 39... Bd7 {[%clk 0:01:12.4]} 40. Kxc4
{[%clk 0:00:36.9]} 40... Bxa4 {[%clk 0:01:13.8]} 41. Bxa4 {[%clk 0:00:36.4]}
41... Rxa4+ {[%clk 0:01:15.7]} 42. Kd5 {[%clk 0:00:35.2]} 42... f4 {[%clk
0:01:08.5]} 43. gxf4 {[%clk 0:00:32.7]} 43... Rxf4 {[%clk 0:01:10.4]} 44. Rb5
{[%clk 0:00:32.7]} 44... a4 {[%clk 0:01:11]} 45. c4 {[%clk 0:00:32.8]} 45... a3
{[%clk 0:01:02.9]} 46. Ra5 {[%clk 0:00:33.3]} 46... Rf3 {[%clk 0:01:03.4]} 47.
c5 {[%clk 0:00:33.6]} 47... Kb7 {[%clk 0:01:04.1]} 48. c6+ {[%clk 0:00:33.8]}
48... Kb6 {[%clk 0:01:04.7]} 49. Ra8 {[%clk 0:00:32.3]} 49... Rd3+ {[%clk
0:01:03.6]} 50. Ke4 {[%clk 0:00:31.1]} 50... Rc3 {[%clk 0:01:02.3]} 51. Kd4
{[%clk 0:00:30]} 51... Rh3 {[%clk 0:01:02.1]} 52. Kd5 {[%clk 0:00:29.4]} 52...
h5 {[%clk 0:00:46.6]} 53. Rb8+ {[%clk 0:00:24.3]} 53... Kc7 {[%clk 0:00:47.8]}
54. Rb7+ {[%clk 0:00:23.9]} 54... Kc8 {[%clk 0:00:45.2]} 55. Rxf7 {[%clk
0:00:23]} 55... a2 {[%clk 0:00:34.8]} 56. Ra7 {[%clk 0:00:23]} 56... Rxh2 {[%clk
0:00:35.9]} 57. c7 {[%clk 0:00:19]} 57... Rd2+ {[%clk 0:00:24.2]} 58. Kc6 {[%clk
0:00:15.9]} 58... Rc2+ {[%clk 0:00:25.2]} 59. Kd6 {[%clk 0:00:16.5]} 59... Rd2+
{[%clk 0:00:22.9]} 60. Kc6 {[%clk 0:00:16.9]} 60... Rc2+ {[%clk 0:00:24.3]} 61.
Kd5 {[%clk 0:00:17]} 61... h4 {[%clk 0:00:22.9]} 62. e6 {[%clk 0:00:17.6]} 62...
h3 {[%clk 0:00:12.3]} 63. e7 {[%clk 0:00:17.5]} 63... Rd2+ {[%clk 0:00:13.3]}
64. Ke6 {[%clk 0:00:11.3]} 64... Re2+ {[%clk 0:00:14.6]} 65. Kd6 {[%clk
0:00:10.6]} 65... Rd2+ {[%clk 0:00:15.2]} 66. Kc6 {[%clk 0:00:11.1]} 66... Rc2+
{[%clk 0:00:16]} 67. Kb5 {[%clk 0:00:11.7]} 67... Rb2+ {[%clk 0:00:15]} 68. Kc4
{[%clk 0:00:12.1]} 68... Rc2+ {[%clk 0:00:16.1]} 69. Kd3 {[%clk 0:00:12.9]}
69... Kd7 {[%clk 0:00:07.4]} 70. c8=Q+ {[%clk 0:00:12.2]} 70... Kxc8 {[%clk
0:00:07.9]} 71. e8=Q# {[%clk 0:00:12.8]} 1-0

[Event "*** Qualifier 3: Titled Tuesday 3|2 Blitz"]
[Site "Chess.com"]
[Date "2017.04.18"]
[Round "7"]
[White "Cryptochess"]
[Black "superjem123"]
[Result "0-1"]
[WhiteElo "2466"]
[BlackElo "2561"]
[TimeControl "180+2"]
[EndTime "14:38:40 PDT"]
[Termination "superjem123 won by resignation"]

1. e4 {[%clk 0:03:02]} 1... e5 {[%clk 0:03:01]} 2. Nf3 {[%clk 0:03:03]} 2... Nc6
{[%clk 0:03:02.2]} 3. Bc4 {[%clk 0:03:04.8]} 3... Bc5 {[%clk 0:03:02.5]} 4. c3
{[%clk 0:03:06]} 4... Nf6 {[%clk 0:03:03.4]} 5. d3 {[%clk 0:03:07.5]} 5... a6
{[%clk 0:03:04.4]} 6. a4 {[%clk 0:03:08]} 6... d6 {[%clk 0:03:05.1]} 7. Nbd2
{[%clk 0:03:08.7]} 7... O-O {[%clk 0:03:05.4]} 8. Nf1 {[%clk 0:03:09.8]} 8...
Ng4 {[%clk 0:03:03]} 9. d4 {[%clk 0:03:05.9]} 9... exd4 {[%clk 0:03:02.5]} 10.
cxd4 {[%clk 0:03:07.3]} 10... Bb4+ {[%clk 0:03:03]} 11. Bd2 {[%clk 0:03:04.5]}
11... Re8 {[%clk 0:02:56.1]} 12. Bd3 {[%clk 0:02:41.6]} 12... Qf6 {[%clk
0:02:02.9]} 13. Bxb4 {[%clk 0:02:21.8]} 13... Nxb4 {[%clk 0:02:04.8]} 14. Ng3
{[%clk 0:02:19.2]} 14... Nc6 {[%clk 0:01:26.2]} 15. Bc2 {[%clk 0:01:58.3]} 15...
Nh6 {[%clk 0:00:33.1]} 16. h3 {[%clk 0:01:52.1]} 16... d5 {[%clk 0:00:28.7]} 17.
e5 {[%clk 0:01:47]} 17... Qe7 {[%clk 0:00:26.5]} 18. O-O {[%clk 0:01:44.5]}
18... Nb4 {[%clk 0:00:27.8]} 19. Bb1 {[%clk 0:01:40.6]} 19... c6 {[%clk
0:00:23.4]} 20. Qd2 {[%clk 0:01:40.2]} 20... a5 {[%clk 0:00:23.9]} 21. Ng5
{[%clk 0:01:28.3]} 21... g6 {[%clk 0:00:16.3]} 22. N5e4 {[%clk 0:01:28.9]} 22...
Kg7 {[%clk 0:00:15.8]} 23. Nf6 {[%clk 0:01:27.9]} 23... Rf8 {[%clk 0:00:14.4]}
24. Qg5 {[%clk 0:01:27.7]} 24... Ng8 {[%clk 0:00:15.5]} 25. Re1 {[%clk
0:00:25.2]} 25... Ra6 {[%clk 0:00:15.5]} 26. h4 {[%clk 0:00:18.8]} 26... h6
{[%clk 0:00:08.7]} 27. Nfh5+ {[%clk 0:00:15.1]} 27... Kh8 {[%clk 0:00:07.7]} 28.
Qxe7 {[%clk 0:00:15.6]} 28... Nxe7 {[%clk 0:00:09.6]} 29. Nf6 {[%clk 0:00:17.2]}
29... Kg7 {[%clk 0:00:11]} 30. h5 {[%clk 0:00:17.8]} 30... Ng8 {[%clk
0:00:12.1]} 31. hxg6 {[%clk 0:00:17.8]} 31... fxg6 {[%clk 0:00:10.8]} 32. Nxg8
{[%clk 0:00:18.9]} 32... Rxg8 {[%clk 0:00:12.3]} 33. Ra3 {[%clk 0:00:20.6]}
33... Be6 {[%clk 0:00:12.9]} 34. Rf3 {[%clk 0:00:21.9]} 34... c5 {[%clk
0:00:11.5]} 35. Rf6 {[%clk 0:00:22.7]} 35... Bf7 {[%clk 0:00:12.1]} 36. Rxa6
{[%clk 0:00:16.9]} 36... Nxa6 {[%clk 0:00:14]} 37. e6 {[%clk 0:00:18.4]} 37...
Be8 {[%clk 0:00:15.4]} 38. Re5 {[%clk 0:00:18.2]} 38... Bxa4 {[%clk 0:00:12.4]}
39. Rxd5 {[%clk 0:00:18]} 39... cxd4 {[%clk 0:00:13.9]} 40. Rxd4 {[%clk
0:00:19]} 40... Bc6 {[%clk 0:00:15]} 41. Rf4 {[%clk 0:00:17.7]} 41... Be8 {[%clk
0:00:13.3]} 42. e7 {[%clk 0:00:16.3]} 42... Nb4 {[%clk 0:00:13.3]} 43. Rd4
{[%clk 0:00:10.4]} 43... Nc6 {[%clk 0:00:14.1]} 44. Rd6 {[%clk 0:00:10]} 44...
Nxe7 {[%clk 0:00:13.9]} 45. Ne4 {[%clk 0:00:10.4]} 45... Rf8 {[%clk 0:00:15.3]}
46. Nc5 {[%clk 0:00:11.2]} 46... Rf6 {[%clk 0:00:09.6]} 47. Ne6+ {[%clk
0:00:07.7]} 47... Kh8 {[%clk 0:00:08.5]} 48. Ba2 {[%clk 0:00:04.7]} 48... Nc6
{[%clk 0:00:08.8]} 49. g4 {[%clk 0:00:04.1]} 49... Bf7 {[%clk 0:00:09.8]} 50. f4
{[%clk 0:00:05.1]} 50... Bxe6 {[%clk 0:00:09.2]} 51. Bxe6 {[%clk 0:00:07]} 51...
Rxf4 {[%clk 0:00:09.7]} 52. Rd7 {[%clk 0:00:08.6]} 52... b5 {[%clk 0:00:09.8]}
53. Kg2 {[%clk 0:00:07.9]} 53... Nd4 {[%clk 0:00:11.1]} 54. Bd5 {[%clk
0:00:04.4]} 54... Rxg4+ {[%clk 0:00:12.1]} 55. Kf2 {[%clk 0:00:05.9]} 55... h5
{[%clk 0:00:12.5]} 56. Ke3 {[%clk 0:00:06.4]} 56... Nf5+ {[%clk 0:00:12.9]} 57.
Kf3 {[%clk 0:00:07.9]} 57... Nd4+ {[%clk 0:00:13.7]} 58. Ke3 {[%clk 0:00:09.3]}
58... a4 {[%clk 0:00:15.4]} 59. Rd8+ {[%clk 0:00:09.7]} 59... Kg7 {[%clk
0:00:16.3]} 60. Be4 {[%clk 0:00:10.8]} 60... Nf5+ {[%clk 0:00:15.7]} 61. Kf3
{[%clk 0:00:10.9]} 61... Nh4+ {[%clk 0:00:15.3]} 62. Ke3 {[%clk 0:00:11.9]}
62... Nf5+ {[%clk 0:00:16.5]} 63. Kf3 {[%clk 0:00:13.2]} 63... Kh6 {[%clk
0:00:17.8]} 64. Rb8 {[%clk 0:00:14.1]} 64... Kg5 {[%clk 0:00:17.4]} 65. Rxb5
{[%clk 0:00:14.3]} 65... Rf4+ {[%clk 0:00:18.5]} 66. Kg2 {[%clk 0:00:13.3]}
66... Rxe4 {[%clk 0:00:20.4]} 67. Ra5 {[%clk 0:00:15]} 67... Re2+ {[%clk
0:00:20.9]} 68. Kf3 {[%clk 0:00:16.5]} 68... Rxb2 {[%clk 0:00:21.6]} 69. Rxa4
{[%clk 0:00:18.1]} 69... Rb3+ {[%clk 0:00:23]} 70. Kg2 {[%clk 0:00:19.4]} 70...
h4 {[%clk 0:00:24.4]} 71. Kh2 {[%clk 0:00:20.4]} 71... Kh5 {[%clk 0:00:23.7]}
72. Ra2 {[%clk 0:00:21.9]} 72... g5 {[%clk 0:00:24.7]} 73. Rf2 {[%clk
0:00:23.6]} 73... Kg4 {[%clk 0:00:23]} 74. Rc2 {[%clk 0:00:24.9]} 74... Rh3+
{[%clk 0:00:22.6]} 75. Kg1 {[%clk 0:00:25.4]} 75... Rg3+ {[%clk 0:00:23.8]} 76.
Kh2 {[%clk 0:00:26.6]} 76... Ne3 {[%clk 0:00:24.9]} 77. Rc8 {[%clk 0:00:22.7]}
77... Rf3 {[%clk 0:00:22.8]} 78. Re8 {[%clk 0:00:21.9]} 78... Rf2+ {[%clk
0:00:22.2]} 79. Kg1 {[%clk 0:00:22]} 79... Re2 {[%clk 0:00:19.2]} 80. Rg8 {[%clk
0:00:20.6]} 80... Kf4 {[%clk 0:00:11.3]} 81. Kh1 {[%clk 0:00:20]} 81... g4
{[%clk 0:00:11.7]} 82. Ra8 {[%clk 0:00:14.7]} 82... Re1+ {[%clk 0:00:11.6]} 83.
Kh2 {[%clk 0:00:15.1]} 83... g3+ {[%clk 0:00:13.5]} 0-1

[Event "*** Qualifier 3: Titled Tuesday 3|2 Blitz"]
[Site "Chess.com"]
[Date "2017.04.18"]
[Round "8"]
[White "Quiet_Desperation"]
[Black "Robin-Side"]
[Result "1/2-1/2"]
[WhiteElo "2034"]
[BlackElo "2297"]
[TimeControl "180+2"]
[EndTime "14:44:53 PDT"]
[Termination "Game drawn by repetition"]

1. e4 {[%clk 0:03:01.9]} 1... c5 {[%clk 0:03:00.5]} 2. Nf3 {[%clk 0:03:02.1]}
2... Nc6 {[%clk 0:03:02]} 3. d4 {[%clk 0:02:59]} 3... cxd4 {[%clk 0:03:03.9]} 4.
Nxd4 {[%clk 0:03:00.4]} 4... e5 {[%clk 0:03:04.1]} 5. Nb5 {[%clk 0:03:01.3]}
5... d6 {[%clk 0:03:04.5]} 6. N1c3 {[%clk 0:03:02.7]} 6... a6 {[%clk 0:03:05.7]}
7. Na3 {[%clk 0:03:03.4]} 7... b5 {[%clk 0:03:07.3]} 8. Nd5 {[%clk 0:03:04.7]}
8... Nge7 {[%clk 0:03:08.8]} 9. c4 {[%clk 0:03:05.6]} 9... Nd4 {[%clk
0:03:08.3]} 10. Bd3 {[%clk 0:03:05.2]} 10... Nxd5 {[%clk 0:03:04.8]} 11. exd5
{[%clk 0:03:04.7]} 11... Be7 {[%clk 0:02:50]} 12. O-O {[%clk 0:03:04.1]} 12...
O-O {[%clk 0:02:49.8]} 13. cxb5 {[%clk 0:03:03.2]} 13... Bg5 {[%clk 0:02:21.4]}
14. bxa6 {[%clk 0:02:56.8]} 14... Bxc1 {[%clk 0:02:19.7]} 15. Rxc1 {[%clk
0:02:55]} 15... Bxa6 {[%clk 0:02:20.2]} 16. Nc2 {[%clk 0:02:48.1]} 16... Nxc2
{[%clk 0:02:02.9]} 17. Qxc2 {[%clk 0:02:45.5]} 17... Bxd3 {[%clk 0:02:03]} 18.
Qxd3 {[%clk 0:02:47.4]} 18... Rxa2 {[%clk 0:02:03.9]} 19. Qb3 {[%clk 0:02:44.2]}
19... Qa8 {[%clk 0:01:59.2]} 20. Rc6 {[%clk 0:02:43.1]} 20... Rb8 {[%clk
0:01:55.6]} 21. Rb6 {[%clk 0:02:33.4]} 21... Rxb6 {[%clk 0:01:44.5]} 22. Qxb6
{[%clk 0:02:32.7]} 22... Ra1 {[%clk 0:01:31.4]} 23. g3 {[%clk 0:02:22.4]} 23...
Rxf1+ {[%clk 0:01:29.5]} 24. Kxf1 {[%clk 0:02:23.5]} 24... h6 {[%clk 0:01:21.8]}
25. Qxd6 {[%clk 0:02:23.5]} 25... Qa1+ {[%clk 0:01:22.1]} 26. Kg2 {[%clk
0:02:24]} 26... Qxb2 {[%clk 0:01:22.7]} 27. Qc6 {[%clk 0:02:17.4]} 27... e4
{[%clk 0:00:48.9]} 28. Qe8+ {[%clk 0:02:16.6]} 28... Kh7 {[%clk 0:00:49.2]} 29.
Qxe4+ {[%clk 0:02:18.3]} 29... Kg8 {[%clk 0:00:49.5]} 30. Qd3 {[%clk 0:02:17.5]}
30... Qb7 {[%clk 0:00:48.9]} 31. Kf3 {[%clk 0:02:16.5]} 31... g6 {[%clk
0:00:46.7]} 32. Qe4 {[%clk 0:02:09.4]} 32... Qb3+ {[%clk 0:00:46.2]} 33. Kg2
{[%clk 0:02:08]} 33... Qb7 {[%clk 0:00:46.8]} 34. Kf3 {[%clk 0:02:00.2]} 34...
Qb3+ {[%clk 0:00:47.1]} 35. Kg2 {[%clk 0:01:58.5]} 35... Qb7 {[%clk 0:00:47.7]}
36. Kf3 {[%clk 0:01:56.3]} 1/2-1/2

[Event "*** Qualifier 3: Titled Tuesday 3|2 Blitz"]
[Site "Chess.com"]
[Date "2017.04.18"]
[Round "8"]
[White "cailinchetty"]
[Black "dhanushbharadwaj"]
[Result "0-1"]
[WhiteElo "1943"]
[BlackElo "2427"]
[TimeControl "180+2"]
[EndTime "14:45:04 PDT"]
[Termination "dhanushbharadwaj won by resignation"]

1. e4 {[%clk 0:03:01.5]} 1... c6 {[%clk 0:02:59.4]} 2. Nf3 {[%clk 0:03:02.9]}
2... d5 {[%clk 0:02:58.2]} 3. exd5 {[%clk 0:02:59.4]} 3... cxd5 {[%clk
0:02:58.3]} 4. d4 {[%clk 0:03:01]} 4... Nf6 {[%clk 0:02:58.3]} 5. c3 {[%clk
0:03:02.3]} 5... Nc6 {[%clk 0:02:58.2]} 6. Bd3 {[%clk 0:03:03.5]} 6... g6 {[%clk
0:02:58.1]} 7. Bf4 {[%clk 0:03:02.2]} 7... Bg7 {[%clk 0:02:59.3]} 8. Qd2 {[%clk
0:02:59.3]} 8... O-O {[%clk 0:02:57.7]} 9. Na3 {[%clk 0:03:00.2]} 9... Bg4
{[%clk 0:02:54.1]} 10. Ng1 {[%clk 0:02:56.6]} 10... Re8 {[%clk 0:02:53.4]} 11.
h3 {[%clk 0:02:57]} 11... Bd7 {[%clk 0:02:52.7]} 12. Nf3 {[%clk 0:02:57.3]}
12... Ne4 {[%clk 0:02:51.7]} 13. Bxe4 {[%clk 0:02:53]} 13... dxe4 {[%clk
0:02:52.4]} 14. Ne5 {[%clk 0:02:51.1]} 14... Nxe5 {[%clk 0:02:52]} 15. Bxe5
{[%clk 0:02:49]} 15... Bxe5 {[%clk 0:02:51.8]} 16. dxe5 {[%clk 0:02:49.4]} 16...
Qb6 {[%clk 0:02:43.2]} 17. O-O-O {[%clk 0:02:44.2]} 17... Be6 {[%clk 0:02:41.1]}
18. Kb1 {[%clk 0:02:43.5]} 18... Rac8 {[%clk 0:02:38.8]} 19. Rhe1 {[%clk
0:02:38.9]} 19... Qa5 {[%clk 0:02:35.9]} 20. g4 {[%clk 0:02:34.4]} 20... Qxe5
{[%clk 0:02:35.6]} 21. f3 {[%clk 0:02:32]} 21... Qg3 {[%clk 0:02:20.4]} 22. Rxe4
{[%clk 0:02:27.3]} 22... Qxf3 {[%clk 0:02:19.3]} 23. Re3 {[%clk 0:02:19.1]}
23... Qf6 {[%clk 0:02:19.9]} 24. Nc2 {[%clk 0:02:18.6]} 24... Red8 {[%clk
0:02:11.1]} 25. Qe1 {[%clk 0:02:15.5]} 25... Rxd1+ {[%clk 0:02:05.2]} 26. Qxd1
{[%clk 0:02:13.3]} 26... Qf2 {[%clk 0:02:05.9]} 27. Re2 {[%clk 0:02:06.5]} 27...
Qf3 {[%clk 0:02:05.2]} 28. Nd4 {[%clk 0:02:03.5]} 28... Qd5 {[%clk 0:01:58]} 29.
Qe1 {[%clk 0:01:59.2]} 29... Qxa2+ {[%clk 0:01:58.3]} 30. Kc2 {[%clk 0:01:58.8]}
30... Qa4+ {[%clk 0:01:59.1]} 31. Kb1 {[%clk 0:01:55.8]} 31... Ba2+ {[%clk
0:01:59.3]} 32. Kc1 {[%clk 0:01:56.7]} 32... Qxd4 {[%clk 0:01:59.9]} 33. Rxe7
{[%clk 0:01:53.8]} 33... Qf4+ {[%clk 0:02:00.7]} 34. Kc2 {[%clk 0:01:55]} 34...
Qa4+ {[%clk 0:01:52]} 35. Kc1 {[%clk 0:01:54.7]} 35... Bb3 {[%clk 0:01:45.4]}
36. Kd2 {[%clk 0:01:50.2]} 36... Rd8+ {[%clk 0:01:42]} 37. Ke3 {[%clk
0:01:50.1]} 37... Re8 {[%clk 0:01:40.4]} 38. Kf3 {[%clk 0:01:48.4]} 38... Bd5+
{[%clk 0:01:38]} 39. Kf2 {[%clk 0:01:46.1]} 39... Qf4+ {[%clk 0:01:36.9]} 40.
Kg1 {[%clk 0:01:45.3]} 40... Rxe7 {[%clk 0:01:35.9]} 41. Qxe7 {[%clk 0:01:44.4]}
41... Qg3+ {[%clk 0:01:37]} 42. Kf1 {[%clk 0:01:45]} 42... Bc4+ {[%clk
0:01:38.2]} 0-1

[Event "*** Qualifier 3: Titled Tuesday 3|2 Blitz"]
[Site "Chess.com"]
[Date "2017.04.18"]
[Round "8"]
[White "Konavets"]
[Black "RobertoJBM"]
[Result "1-0"]
[WhiteElo "2606"]
[BlackElo "2444"]
[TimeControl "180+2"]
[EndTime "14:45:34 PDT"]
[Termination "Konavets won on time"]

1. e4 {[%clk 0:03:02]} 1... c6 {[%clk 0:02:58.9]} 2. d4 {[%clk 0:03:02.7]} 2...
d5 {[%clk 0:03:00.8]} 3. Nc3 {[%clk 0:03:04.2]} 3... dxe4 {[%clk 0:03:01.5]} 4.
Nxe4 {[%clk 0:03:06.1]} 4... Nd7 {[%clk 0:03:02.2]} 5. Nf3 {[%clk 0:03:05.7]}
5... Ngf6 {[%clk 0:03:03.2]} 6. Nxf6+ {[%clk 0:03:06.8]} 6... Nxf6 {[%clk
0:03:05.1]} 7. c3 {[%clk 0:03:08.7]} 7... Bg4 {[%clk 0:03:05]} 8. h3 {[%clk
0:03:08]} 8... Bxf3 {[%clk 0:03:05.6]} 9. Qxf3 {[%clk 0:03:09.9]} 9... Qd5
{[%clk 0:03:07]} 10. Be2 {[%clk 0:03:10]} 10... e6 {[%clk 0:03:08]} 11. O-O
{[%clk 0:03:10.6]} 11... Bd6 {[%clk 0:03:08.2]} 12. Qd3 {[%clk 0:03:07.2]} 12...
Qe4 {[%clk 0:03:08.6]} 13. Qd1 {[%clk 0:03:07.2]} 13... Qf5 {[%clk 0:03:04]} 14.
Bd3 {[%clk 0:03:07.9]} 14... Qh5 {[%clk 0:03:03.9]} 15. Qb3 {[%clk 0:03:00.6]}
15... Rb8 {[%clk 0:03:01.6]} 16. Re1 {[%clk 0:03:00.4]} 16... O-O {[%clk
0:03:01.6]} 17. Be3 {[%clk 0:02:59]} 17... Nd5 {[%clk 0:03:02.1]} 18. Bd2 {[%clk
0:02:57.9]} 18... Bf4 {[%clk 0:03:02]} 19. Rad1 {[%clk 0:02:55.8]} 19... Bxd2
{[%clk 0:02:59.8]} 20. Rxd2 {[%clk 0:02:57.7]} 20... Qg5 {[%clk 0:02:59.7]} 21.
Qd1 {[%clk 0:02:46]} 21... Nf4 {[%clk 0:02:56.8]} 22. g3 {[%clk 0:02:45.5]}
22... Nxh3+ {[%clk 0:02:40.7]} 23. Kh2 {[%clk 0:02:45.8]} 23... Qh6 {[%clk
0:02:41.3]} 24. Kg2 {[%clk 0:02:47.2]} 24... Ng5 {[%clk 0:02:30.1]} 25. Rh1
{[%clk 0:02:45.9]} 25... Qf6 {[%clk 0:02:28.6]} 26. f4 {[%clk 0:02:46.8]} 26...
h6 {[%clk 0:02:26.6]} 27. fxg5 {[%clk 0:02:45.7]} 27... Qxg5 {[%clk 0:02:28.5]}
28. Re2 {[%clk 0:02:44.9]} 28... Rbd8 {[%clk 0:02:27]} 29. Re5 {[%clk
0:02:44.9]} 29... Qe7 {[%clk 0:02:27.3]} 30. Qg4 {[%clk 0:02:43.2]} 30... Qf6
{[%clk 0:02:18.1]} 31. Qf4 {[%clk 0:02:42]} 31... Qxf4 {[%clk 0:02:18.7]} 32.
gxf4 {[%clk 0:02:43.9]} 32... Rd5 {[%clk 0:02:19.7]} 33. Kf3 {[%clk 0:02:44.1]}
33... Rfd8 {[%clk 0:02:19]} 34. b4 {[%clk 0:02:44.3]} 34... Kf8 {[%clk
0:02:17.5]} 35. a4 {[%clk 0:02:44.7]} 35... Ke7 {[%clk 0:02:18.3]} 36. Be4
{[%clk 0:02:41.9]} 36... Rxe5 {[%clk 0:02:12.7]} 37. fxe5 {[%clk 0:02:42.5]}
37... f5 {[%clk 0:02:09.8]} 38. exf6+ {[%clk 0:02:43.3]} 38... Kxf6 {[%clk
0:02:10.2]} 39. Kg4 {[%clk 0:02:44.6]} 39... g6 {[%clk 0:02:07.8]} 40. Rxh6
{[%clk 0:02:44.6]} 1-0

[Event "*** Qualifier 3: Titled Tuesday 3|2 Blitz"]
[Site "Chess.com"]
[Date "2017.04.18"]
[Round "8"]
[White "BogdanDeac"]
[Black "Izoria123"]
[Result "1-0"]
[WhiteElo "2548"]
[BlackElo "2630"]
[TimeControl "180+2"]
[EndTime "14:45:36 PDT"]
[Termination "BogdanDeac won by resignation"]

1. d4 {[%clk 0:03:02]} 1... d6 {[%clk 0:02:58.3]} 2. e4 {[%clk 0:02:59.8]} 2...
Nf6 {[%clk 0:02:57.4]} 3. Nc3 {[%clk 0:03:00.3]} 3... g6 {[%clk 0:02:59.1]} 4.
f4 {[%clk 0:03:00.5]} 4... Bg7 {[%clk 0:02:59.7]} 5. Bd3 {[%clk 0:03:01.9]} 5...
e5 {[%clk 0:02:56.1]} 6. dxe5 {[%clk 0:02:38.9]} 6... dxe5 {[%clk 0:02:58]} 7.
Nf3 {[%clk 0:02:39.4]} 7... exf4 {[%clk 0:02:45.5]} 8. Bxf4 {[%clk 0:02:39.5]}
8... O-O {[%clk 0:02:46.6]} 9. O-O {[%clk 0:02:39.6]} 9... c6 {[%clk 0:02:42.4]}
10. e5 {[%clk 0:02:38.8]} 10... Nd5 {[%clk 0:02:35.3]} 11. Nxd5 {[%clk
0:02:35.4]} 11... Qxd5 {[%clk 0:02:37.2]} 12. Qe2 {[%clk 0:02:34.8]} 12... Be6
{[%clk 0:01:36.8]} 13. Rad1 {[%clk 0:02:20.3]} 13... Qc5+ {[%clk 0:01:31.7]} 14.
Be3 {[%clk 0:02:19.5]} 14... Qa5 {[%clk 0:01:31.2]} 15. Bc4 {[%clk 0:02:08.4]}
15... Bxc4 {[%clk 0:01:13]} 16. Qxc4 {[%clk 0:02:08.3]} 16... Qb5 {[%clk
0:01:14.9]} 17. Qh4 {[%clk 0:01:24.7]} 17... h5 {[%clk 0:00:53.3]} 18. e6 {[%clk
0:01:18.1]} 18... fxe6 {[%clk 0:00:41.5]} 19. Qe7 {[%clk 0:01:14.9]} 19... Qc4
{[%clk 0:00:29.2]} 20. Ng5 {[%clk 0:01:05.3]} 20... Na6 {[%clk 0:00:20.9]} 21.
Nxe6 {[%clk 0:01:01]} 21... Rxf1+ {[%clk 0:00:15.7]} 22. Rxf1 {[%clk 0:01:00.6]}
22... Be5 {[%clk 0:00:13.4]} 23. Rf8+ {[%clk 0:00:59.3]} 1-0